Cogmind - Beta 15 *** ADVENTURER MODE // 2025.08.31 @ 14:52:08 Player: Knightshade Result: Self-destructed Performance ------------- Evolutions (2) 1000 Regions Visited (3) 600 Robots Destroyed (50) 250 Value Destroyed (1192) 1192 Prototype IDs (18) 360 Alien Tech Used (0) 0 Bonus (0) 0 TOTAL SCORE: 3402 Bonus ------- None Cogmind --------- Core Integrity 470/550 Matter 207/300 Energy 240/240 System Corruption 4% Temperature Warm (120) Movement Rolling (150) Ox4 Location -8/Materials Parts ------- > --- POWER (1) -------- Nuclear Core > --- PROPULSION (2) --- Wheel Compact Wheel > --- UTILITY (6) ------ Huge Storage Unit Structural Scanner Core Shielding Makeshift Light Armor Plating Cobbler Unit > --- WEAPON (2) ------- Heavy EM Shotgun > --- INVENTORY (25) --- Subdweller Monowheel Medium Storage Unit Large Storage Unit Large Battery (200) Large Matter Pod (150) Large Matter Pod (150) Weight Redist. System Machine Analyzer Visual Processing Unit ECM Suite Core Shielding Hardened Light Armor Plating Recalibrator Rainbow Chip Riot Gun Advanced Beam Rifle Advanced Beam Rifle Advanced Beam Rifle Advanced Beam Rifle High-powered Shotgun Slug Cannon Grenade Launcher Grenade Launcher Datajack Flamer Peak State ------------ > --- POWER ------------ Nuclear Core > --- PROPULSION ------- Wheel Compact Wheel > --- UTILITY ---------- Huge Storage Unit Structural Scanner Core Shielding Makeshift Light Armor Plating Cobbler Unit > --- WEAPON ----------- Heavy EM Shotgun Heavy EM Shotgun > --- INVENTORY -------- Subdweller Monowheel Medium Storage Unit Large Storage Unit Large Battery Large Matter Pod Large Matter Pod Weight Redist. System Machine Analyzer Visual Processing Unit ECM Suite Core Shielding Hardened Light Armor Plating Recalibrator Rainbow Chip Riot Gun Particle Gun Subdweller Laser Advanced Beam Rifle Advanced Beam Rifle High-powered Shotgun Slug Cannon Grenade Launcher Grenade Launcher Datajack Flamer [Rating: 30] Favorites ----------- Power Ion Engine Engine Ion Engine Power Core Nuclear Core Propulsion Compact Wheel Treads Light Treads Wheel Compact Wheel Utility Huge Storage Unit Device Seismic Detector Storage Huge Storage Unit Protection Core Shielding Weapon Medium Laser Energy Gun Medium Laser Energy Cannon Subdweller Beam Cannon Ballistic Gun Assault Rifle Ballistic Cannon Slug Cannon Special Melee Weapon Datajack Build | -11 -10 -10 -8 ------- Run | Yrd Mat Sub Mat Slots Evolved 4 | . . . 4 Power . | . . . . Propulsion . | . . . . Utility 4 | . . . 4 Weapon . | . . . . Parts Attached 33 | 7 10 5 11 Power 4 | 1 1 1 1 Engine 3 | 1 1 1 . Core 1 | . . . 1 Reactor . | . . . . Propulsion 6 | 2 3 . 1 Treads 2 | 2 . . . Leg . | . . . . Wheel 4 | . 3 . 1 Hover . | . . . . Flight . | . . . . Utility 9 | 2 2 1 4 Device 3 | 1 . . 2 Storage 3 | 1 2 . . Processor . | . . . . Hackware . | . . . . Protection 3 | . . 1 2 Artifact . | . . . . Weapon 14 | 2 4 3 5 Energy Gun 8 | 2 2 1 3 Energy Cannon 1 | . . 1 . Ballistic Gun 3 | . 2 . 1 Ballistic Cannon 1 | . . 1 . Launcher . | . . . . Special Weapon . | . . . . Impact Weapon . | . . . . Slashing Weapon . | . . . . Piercing Weapon . | . . . . Special Melee Weapon 1 | . . . 1 Unidentified Prototypes 2 | . . . 2 Parts Lost 7 | . 3 2 2 Power 1 | . . . 1 Propulsion 2 | . 1 1 . Utility 1 | . . 1 . Weapon 3 | . 2 . 1 Highest Loss Streak 2 | . 2 2 1 To Critical Strikes . | . . . . Average Backups 20 | 2 15 22 24 Power . | . . 1 . Propulsion . | 1 . . . Utility 12 | . 10 14 12 Weapon 5 | . 3 5 9 Tool/Special . | . . . . Unused Backups 27 | . 1 1 25 Power 1 | . . . 1 Propulsion 1 | . . . 1 Utility 13 | . . 1 12 Weapon 12 | . 1 . 11 Tool/Special . | . . . . Average Slot Usage (%) 93 | . 97 96 86 Engine 10 | . 14 14 4 Core 1 | . . . 4 Treads 2 | . 7 . . Wheel 20 | . 20 25 17 Device 13 | . 14 11 16 Storage 12 | . 14 14 9 Protection 7 | . . 2 17 Energy Gun 14 | . 12 15 14 Energy Cannon 2 | . . 6 . Ballistic Gun 5 | . 13 1 . Ballistic Cannon 2 | . . 4 3 Peak Build Rating 30 | 7 9 14 30 Average Rating 15 | 5 8 11 25 On Entrance 7 | . 7 9 13 Naked Turns . | . . . . Heaviest Build 113 | 15 90 96 113 Greatest Support 40 | 40 40 26 26 Greatest Overweight (x) 5 | . 5 5 5 Average Overweight (x) 2 | . 1 3 3 Largest Inventory Capacity 25 | 8 25 25 25 Average Capacity 23 | 7 22 25 25 Most Carried 25 | 4 21 25 25 Average Carried 20 | 2 15 23 24 Final Capacity 25 | 8 25 25 25 Final Carried 25 | 3 20 23 25 Class Distribution -------------------- 88% | Mutant 11% | Scavenger-Mutant Dominant Class ---------------- Mutant | -10/Materials Mutant | -10/Subcaves Mutant | -8/Materials Resources | -11 -10 -10 -8 ----------- Run | Yrd Mat Sub Mat Matter Collected 2084 | 248 325 176 1335 Remotely . | . . . . Salvage Created 1829 | 113 657 433 626 Parts 117 | 6 47 24 40 Haulers Intercepted 6 | . 2 . 4 Recyclers Shooed . | . . . . Parts Field Recycled . | . . . . Retrieved Matter . | . . . . Parts Self-Destructed 15 | . . 15 . Prevented . | . . . . Kills | -11 -10 -10 -8 ------- Run | Yrd Mat Sub Mat Combat Hostiles Destroyed 35 | . 15 9 11 Guns 24 | . 15 3 6 Cannons 11 | . . 6 5 Classes Destroyed 14 | 2 6 3 3 Worker 2 | . 1 . 1 Builder 1 | . . . 1 Tunneler 1 | 1 . . . Hauler 6 | . 2 . 4 Recycler 1 | 1 . . . Mechanic 1 | . 1 . . Operator 1 | . . . 1 Watcher 2 | . 2 . . Swarmer 12 | . 9 . 3 Grunt 12 | . 6 . 6 Sentry 2 | . . . 2 Artisan 2 | . . 2 . Cobbler 1 | . . 1 . Subdweller 9 | . . 9 . Best Kill Streak 5 | 2 5 2 3 Combat Bots Only 5 | . 5 2 3 Max Kills in Single Turn 2 | 1 2 1 2 Gunslinging . | . . . . Exploded . | . . . . Melee . | . . . . Uniques/NPCs Destroyed . | . . . . Combat | -11 -10 -10 -8 -------- Run | Yrd Mat Sub Mat Hostile Shots Fired 161 | . 87 25 49 Missed 46 | . 26 8 12 Hits 115 | . 61 17 37 Projectile 115 | . 61 17 37 Critical Strikes 1 | . . . 1 Damage Taken 1203 | . 437 335 431 Core 245 | . 111 54 80 Absorbed by Shields . | . . . . Redirected to Shielding 15 | . . . 15 Ignored by Resistances 363 | . 146 92 125 Core Remaining (%) 67 | 100 . 34 . Volleys Fired 156 | 3 64 55 34 Largest 2 | 2 2 2 2 Hottest 130 | 80 80 130 100 Shots Fired 286 | 6 108 107 65 Gun 225 | 6 108 66 45 Cannon 61 | . . 41 20 Launcher . | . . . . Special . | . . . . Kinetic 95 | . 46 28 21 Thermal 107 | . 8 79 20 Explosive . | . . . . Electromagnetic 84 | 6 54 . 24 Robot Hit Streak 34 | 3 9 34 17 Robot Miss Streak 3 | 1 3 1 2 Penetration Max . | . . . . Secondary Targets 1 | . . . 1 Max Gunslinging Chain 1 | . . . 1 Shots Hit Robots 170 | 5 74 44 47 Core Hits 82 | 3 30 21 28 Critical Kills 2 | . 1 . 1 Critical Parts Destroyed 1 | . 1 . . Critical Strikes 8 | . 2 3 3 Burn 3 | . . 1 2 Destroy 5 | . 2 2 1 Melee Attacks . | . . . . Impact . | . . . . Slashing . | . . . . Piercing . | . . . . Sneak Attacks . | . . . . Combat Hostiles . | . . . . Follow-up Attacks . | . . . . Damage Inflicted 2884 | 66 1053 715 1050 Guns 2000 | 66 1014 316 604 Cannons 845 | . . 399 446 Explosions 39 | . 39 . . Melee . | . . . . Ramming . | . . . . Kinetic 1108 | . 474 160 474 Thermal 843 | . 100 555 188 Explosive . | . . . . Electromagnetic 933 | 66 479 . 388 Impact . | . . . . Slashing . | . . . . Piercing . | . . . . Highest Corruption 4 | . . . 4 Average Corruption 4 | . . . 4 Corruption Purged . | . . . . Corruption Blocked . | . . . . Effects 24 | . . . 24 Message Errors 10 | . . . 10 Matter Fused 6 | . . . 6 Heat Flow Errors 4 | . . . 4 Data Loss (minor) 3 | . . . 3 Data Loss (major) 1 | . . . 1 Overload Shots . | . . . . Overflow Damage 4 | . . . 4 Projectiles 4 | . . . 4 Explosions . | . . . . Melee . | . . . . Knockbacks 6 | . . 3 3 Impact . | . . . . Kinetic 6 | . . 3 3 Secondary . | . . . . Self-Inflicted Damage . | . . . . Shots . | . . . . Rammed . | . . . . Targets Rammed . | . . . . Kicked . | . . . . Crushed . | . . . . Highest Temperature 299 | 36 186 27 299 Average Temperature 65 | 18 56 9 88 Received Heat Transfer 522 | . 150 111 261 Siege Activations . | . . . . Martial Activations . | . . . . Shielding Activations . | . . . . Robots Disrupted . | . . . . Combat Hostiles . | . . . . Robots Corrupted 1 | . 1 . . Combat Hostiles . | . . . . Parts Fried 4 | . 2 . 2 Impact Corruptions . | . . . . Robots Melted . | . . . . Combat Hostiles . | . . . . Parts Melted 3 | . . 2 1 Heat Transferred 2246 | . 211 1332 703 Parts Sabotaged . | . . . . Parts Stolen . | . . . . Parts Stripped . | . . . . Power Chain Reactions 1 | . 1 . . Alert | -11 -10 -10 -8 ------- Run | Yrd Mat Sub Mat Maximum Alert Level . | . . . . Low Security (%) 100 | 100 100 . 100 Level 1 . | . . . . Level 2 . | . . . . Level 3 . | . . . . Level 4 . | . . . . Level 5 . | . . . . High Security . | . . . . Max Security . | . . . . Peak Influence 174 | 5 174 . 70 Initial . | . . . . Average 23 | . 41 . 8 Influence Increases 879 | 10 531 . 338 Destroy 0b10 Robot/C 520 | . 300 . 220 Destroy 0b10 Robot/NC 75 | 10 30 . 35 Destroy Leader 106 | . 58 . 48 Trap Triggered on 0b10 20 | . . . 20 Successful Hack 20 | . 20 . . Select Force Hacks 30 | . 30 . . Disable Machine 27 | . 18 . 9 Destroy Structure 6 | . . . 6 Lose Combat Pursuer 75 | . 75 . . Influence Decreases 879 | 10 531 . 338 Time Decay 847 | 10 501 . 336 Lost Part 32 | . 30 . 2 Squads Dispatched 2 | . 1 . 1 Investigation 1 | . 1 . . Extermination . | . . . . Reinforcement 1 | . . . 1 Assault . | . . . . Garrison . | . . . . Intercept . | . . . . Searches Triggered . | . . . . Construction Impeded . | . . . . Haulers Reinforced . | . . . . Active Scanning Responses . | . . . . Cargo Convoy Interrupts . | . . . . Stealth | -11 -10 -10 -8 --------- Run | Yrd Mat Sub Mat Distress Signals 1 | . 1 . . Communications Jammed . | . . . . Distress Signals . | . . . . Times Spotted 52 | . 28 8 16 Peak Tracking Total 5 | . 5 2 4 Tactical Retreats 2 | . 2 . . Traps | -11 -10 -10 -8 ------- Run | Yrd Mat Sub Mat Traps Triggered . | . . . . Indirectly . | . . . . Trap Hack Attempts 21 | . . . 21 Triggered . | . . . . Disarmed 2 | . . . 2 Reprogrammed . | . . . . Reused 2 | . . . 2 Traps Extracted . | . . . . Installed 2 | . . . 2 Triggered 2 | . . . 2 Most Traps Carried 1 | . . . 1 Machines | -11 -10 -10 -8 ---------- Run | Yrd Mat Sub Mat Machines Disabled 4 | . 2 1 1 Max in Single Turn 1 | . 1 1 1 Garrison Access 1 | . . . 1 Machines Repaired . | . . . . Machines Dismantled . | . . . . Machines Sabotaged . | . . . . Overloaded Fab Kills . | . . . . Hacking | -11 -10 -10 -8 --------- Run | Yrd Mat Sub Mat Machines Accessed 15 | . 9 1 5 Terminals 11 | . 8 . 3 Fabricators . | . . . . Repair Stations . | . . . . Recycling Units 2 | . 1 . 1 Scanalyzers . | . . . . Garrison Access 1 | . . . 1 Total Hacks 50 | . 31 9 10 Successful 37 | . 19 9 9 Failed 13 | . 12 . 1 Catastrophic . | . . . . Database Lockouts . | . . . . Manual 31 | . 25 . 6 Terminals 33 | . 27 . 6 Fabricators . | . . . . Repair Stations . | . . . . Recycling Units 7 | . 4 . 3 Scanalyzers . | . . . . Garrison Access 1 | . . . 1 Terminal Hacks 12 | . 3 9 . Record 8 | . . 8 . Prototype ID Bank 3 | . 3 . . Proto ID Catalog 1 | . . 1 . Fabricator Hacks . | . . . . Repair Station Hacks . | . . . . Recycling Unit Hacks 6 | . 3 . 3 Process 2 | . 1 . 1 Report Inventory 1 | . 1 . . Retrieve Matter 3 | . 1 . 2 Scanalyzer . | . . . . Garrison Access Hacks 1 | . . . 1 Seal Access 1 | . . . 1 Unauthorized Hacks 18 | . 13 . 5 Terminals 17 | . 12 . 5 Botnet 9 | . 6 . 3 Skim 8 | . 6 . 2 Fabricators . | . . . . Repair Stations . | . . . . Recycling Units 1 | . 1 . . Tunnel 1 | . 1 . . Scanalyzers . | . . . . Garrison Access . | . . . . Data Cores Recovered . | . . . . Used . | . . . . Hacking Detections 12 | . 9 . 3 Full Trace Events . | . . . . Feedback Events . | . . . . Feedback Blocked . | . . . . Robot Schematics Acquired . | . . . . Robots Built . | . . . . Authchips . | . . . . Time . | . . . . Total Robot Build Rating . | . . . . Part Schematics Acquired . | . . . . Parts Built . | . . . . Authchips . | . . . . Time . | . . . . Total Part Build Rating . | . . . . Parts Repaired . | . . . . Time . | . . . . Parts Recycled . | . . . . Recycled Matter 478 | . 173 . 305 Retrieved Matter 807 | . 173 . 634 Retrieved Components . | . . . . Parts Scanalyzed . | . . . . Part Schematics Acquired . | . . . . Parts Damaged . | . . . . Bothacking | -11 -10 -10 -8 ------------ Run | Yrd Mat Sub Mat Used RIF Installer . | . . . . Robots Hacked . | . . . . Non-combat . | . . . . Combat . | . . . . Robot Hacks Applied . | . . . . Relay Couplers Released . | . . . . Fabnet Peak Effective % . | . . . . Robots Rewired . | . . . . Allies Hacked . | . . . . Hacks Repelled . | . . . . Allies | -11 -10 -10 -8 -------- Run | Yrd Mat Sub Mat Total Allies . | . . . . Largest Group . | . . . . Highest-Rated Group . | . . . . Highest-Rated Ally . | . . . . Total Orders . | . . . . Ally Attacks . | . . . . Total Damage . | . . . . Kills . | . . . . Allies Corrupted . | . . . . Allies Melted . | . . . . Intel | -11 -10 -10 -8 ------- Run | Yrd Mat Sub Mat Active Infowar (turns) 4845 | 35 1728 1331 1751 Structural 1751 | . . . 1751 Seismic 3094 | 35 1728 1331 . Robot Analysis Total . | . . . . Derelict Logs Recovered 1 | . . 1 . Drone Launches . | . . . . Drone Recoveries . | . . . . Exploration | -11 -10 -10 -8 ------------- Run | Yrd Mat Sub Mat Turns Passed 5396 | 130 1728 1685 1853 Spaces Moved 2134 | 67 714 934 419 Core 2 | 2 . . . Treads 267 | 65 202 . . Legs . | . . . . Wheels 1865 | . 512 934 419 Hover . | . . . . Flight . | . . . . Fastest Speed 50 | 50 130 135 135 Average Speed 143 | 156 140 142 147 Slowest Speed 175 | 160 175 175 175 Overloaded Moves . | . . . . Propulsion Burnouts . | . . . . Robots Hopped . | . . . . Potential Cave-ins . | . . . . Cave-ins Triggered . | . . . . Exploration Rate (%) 49 | 5 100 64 27 Regions Visited 3 Branch Regions 1 Pre-discovered Areas 4 | . 4 . . Known Exits Taken 2 | . 1 1 . Unknown Exits Taken 1 | 1 . . . Scrap Searched 2 | . . 2 . Spaces Dug . | . . . . Terrain Destroyed 8 | . . 2 6 Melee . | . . . . Projectile 8 | . . 2 6 AOE . | . . . . Terrain Rammed . | . . . . Walls Destroyed . | . . . . Machines Disabled . | . . . . Actions | -11 -10 -10 -8 --------- Run | Yrd Mat Sub Mat Total 4186 | 86 1331 1173 1596 Wait 1759 | . 512 166 1081 Move 2131 | 66 713 933 419 Hop . | . . . . Pick Up 57 | 10 26 6 15 Fast Attach . | . . . . Attach 17 | 7 3 1 6 Detach . | . . . . Swap 21 | . 7 9 5 Drop 22 | . 6 3 13 Fire 156 | 3 64 55 34 Melee . | . . . . Ram . | . . . . Kick . | . . . . Crush . | . . . . Escape Stasis . | . . . . Rewire . | . . . . Trap 23 | . . . 23 Miscellaneous . | . . . . Route ------- -11/Scrapyard -10/Materials (discovered 5 exits: *Mat x3 / [*Min] / *Sub) -10/Subcaves (discovered 2 exits: *Mat x2) -8/Materials History --------- Turn | Location | Event 8 | -11/Scrapyard | Discovered new exit (range 15) 131 | -11/Scrapyard | Entered Materials 315 | -10/Materials | Build established: Mutant 477 | -10/Materials | Discovered new exit (range 13) 611 | -10/Materials | Discovered new exit (range 10) 692 | -10/Materials | Discovered new exit (range 11) 1126 | -10/Materials | Discovered new exit (range 16) 1285 | -10/Materials | Loaded intel: 2 recycling unit locations 1423 | -10/Materials | Discovered new exit (range 8) 1429 | -10/Materials | Identified exit to Materials 1429 | -10/Materials | Identified exit to Subcaves 1489 | -10/Materials | Learned 2 Mines zone layouts 1576 | -10/Materials | Learned location of Mines (-10) 1606 | -10/Materials | Learned location of Mines (-8) 1648 | -10/Materials | Learned Storage stockpile data 1700 | -10/Materials | Learned 4 Recycling zone layouts 1762 | -10/Materials | Learned 2 Materials zone layouts 1859 | -10/Materials | Entered Subcaves 1860 | -10/Subcaves | Approached by a straggling Scientist 1860 | -10/Subcaves | Identified exit to Materials 2102 | -10/Subcaves | A swath of the cavern ceiling suddenly collapsed 2148 | -10/Subcaves | Shifting Twisted Machinery released Spk. Treads 2155 | -10/Subcaves | Shifting Twisted Machinery released Sub. Power Source 2183 | -10/Subcaves | Shifting Twisted Machinery released Sub. Beam Cannon 2186 | -10/Subcaves | Shifting Twisted Machinery released Sub. Power Source 2284 | -10/Subcaves | A swath of the cavern ceiling suddenly collapsed 2566 | -10/Subcaves | Core integrity fell below 50% 2717 | -10/Subcaves | Visited 4L-MR0's lab 2735 | -10/Subcaves | Found Rainbow Chip 3190 | -10/Subcaves | Ambushed by angry Subdweller bent on revenge 3544 | -10/Subcaves | Entered Materials 3544 | -8/Materials | Evolved 4 slots: Utility x4 4082 | -8/Materials | Build established: Scavenger-Mutant 4690 | -8/Materials | Build established: Mutant 5397 | -8/Materials | Self-destructed Last Messages --------------- 05275_ Acquired Adv. Beam Rifle. 05277_ K-01 Serf collects debris. 05346_ Connecting with Terminal... >>Trojan(Botnet) Trojan loaded successfully. Testing... Terminal linked with 2 systems. Awaiting botnet instructions. >>Trojan(Skim) Trojan loaded successfully. Testing... Terminal linked with 1 system. Please expand to 3 more systems! 05372_ A-02 Transporter destroyed. 05372_ Switching to secondary target: G-47 Trooper. 05373_ K-01 Serf collects debris. 05378_ Sml. Matter Pod fried. 05378_ K-01 Serf destroyed. 05392_ Hvy. EM Shotgun destroyed. 05396_ G-47 Trooper IFF system glitched. Map ----- +----------------------------------------------------+ | ?????????????## #########+### # """" | | ?????????????## ? ###### ####### ########## | | ??????????????????????## ########+########### | | ??????????????????????## """ ##?## ! ** ##????? | | ??????????????????????## """ ##?## [][""" ##????? | | ??????????????????????## """ ##?## ]=|"Y"[###???? | | ??????????????????????## ##?##!=[]* !*###???? | | ??????????????????????####+#####?## [! []! ##???? | | ??????????????????????#### #####?## """""| ###???? | | ??????????????????#?????## ##????## """"" ###???? | | ??????????????????#?????## ##????## """"" ##????? | | ??????????????????#?????## ##????## ##????? | | ??????????????????#?????## ##????############????? | | ??????????????????#?###### ##################????? | | ??????????????????#?######+#################?????? | | ??????????????????#?## # ##?????? | | ??????????????????#?## # """ """ T ##?????? | | ??????????????????#?## # """ """ ##?????? | | ??????????????????#?## # """ """ ##?????? | | ????????????? # ??#?## ] # ##?????? | | ????????????? # ? #### # [ ##?????? | | ????????????? # = #######+######+###########?????? | | ????????????? #*%==%= ??? | | ?????????????## = !** Yg ??? | | ?????????????## g ??? | | ?????????????#####+######@#####################??? | | ?????????????### # ##################??? | | ?????????????????? # """ ##??????????????????? | | ?????????????????? # """ ##??????????????????? | | ?????????????????? # """ ##??????????????????? | | ?????????????????? # ##??????????????????? | | ?????????????????? + [ ##??????????????????? | | ??????????????????#############??????????????????? | | ?????????????????????##########??????????????????? | | | | | | | | | | | | | | | | | | | | | | | | | | | | | | | | | +----------------------------------------------------+ Best States ------------- Heat Dissipation 31 Energy Generation 15 Energy Capacity 250 Matter Stores 300 Matter Capacity 300 Sight Range 16 Terrain Scan Density 10 Armor Coverage 100 Resistance: KI 20 Resistance: TH 20 Resistance: EX 20 Resistance: EM 20 Resistance: I 20 Resistance: S 20 Resistance: P 20 Core Shielding 20 Evasion (%) 40 Recoil Reduction 2 Offensive Hacking 10 Item Schematics ----------------- None Robot Schematics ------------------ None Fabricated ------------ Nothing Repaired ---------- Nothing Alien Tech Used ----------------- None Achievements -------------- None Challenges ------------ None Game ------ Seed ResetXenonRouter Manual? 0 Play Time 00:26:05 Cumulative 110.5 hours Start 2025.08.31 @ 14:25:43 End 2025.08.31 @ 14:52:08 Sessions 1 Manual Loads 0 Difficulty Adventurer Special Mode None Game No. 78 Rogue 0 Adventurer 78 Explorer 0 Win Type - Total 0 Types 0/0/0/0/0/0/0/0/0/0 Lore% 27 Gallery% 43 Achievement% 38 Wizard Run 0 Options --------- Layout 0 ASCII 0 Keyboard 0 Movement Mouse Keybinds 0 Fullscreen 1 Font 18/SmallcapsGlow Map View 76x50 Zoom Use 0% Tactical HUD 1 Map Filters NONE Filters NONE Steam 1 RUN: a8fedaff-3d3f-49ba-bd31-21e39ab47ec2